[Event "Titled Tuesday Blitz March 14 Late 2023"]
[White "Szyszylo, Rafal"]
[Black "Holt, Conrad"]
[WhiteFideId "1109626"]
[BlackFideId "2034387"]
[WhiteElo "1951"]
[BlackElo "2592"]
[Result "0-1"]
[Round "04"]
[TimeControl "180+1"]
[Date "2023.03.14"]
[WhiteClock "0:00:01"]
[BlackClock "0:00:45"]

1. e4 {[%clk 0:03:00]}  e6 {[%clk 0:03:00]} 2. d4 {[%clk 0:02:59]}  d5 {[%clk 0:03:00]} 3. e5 {[%clk 0:02:59]}  c5 {[%clk 0:03:01]} 4. c3 {[%clk 0:03:00]}  Nc6 {[%clk 0:03:01]} 5. Nf3 {[%clk 0:03:01]}  Bd7 {[%clk 0:02:59]} 6. Be2 {[%clk 0:03:01]}  Qb6 {[%clk 0:02:53]} 7. O-O {[%clk 0:02:59]}  Nh6 {[%clk 0:02:52]} 8. Bxh6 {[%clk 0:02:58]}  gxh6 {[%clk 0:02:49]} 9. Qd2 {[%clk 0:02:56]}  Rg8 {[%clk 0:02:46]} 10. Na3 {[%clk 0:02:55]}  cxd4 {[%clk 0:02:10]} 11. cxd4 {[%clk 0:02:52]}  Qb4 {[%clk 0:02:10]} 12. Qe3 {[%clk 0:01:57]}  a6 {[%clk 0:02:05]} 13. Nc2 {[%clk 0:01:53]}  Qxb2 {[%clk 0:02:03]} 14. Rfc1 {[%clk 0:01:53]}  Qb6 {[%clk 0:01:59]} 15. Rab1 {[%clk 0:01:52]}  Qa7 {[%clk 0:01:59]} 16. a4 {[%clk 0:01:44]}  Rc8 {[%clk 0:01:58]} 17. Bd3 {[%clk 0:01:40]}  Rh8 {[%clk 0:01:53]} 18. Qf4 {[%clk 0:01:24]}  Bg7 {[%clk 0:01:53]} 19. Ne3 {[%clk 0:01:12]}  h5 {[%clk 0:01:42]} 20. Ng5 {[%clk 0:01:02]}  Rf8 {[%clk 0:01:32]} 21. Nxh7 {[%clk 0:01:01]}  Qxd4 {[%clk 0:01:29]} 22. Qxd4 {[%clk 0:01:00]}  Nxd4 {[%clk 0:01:29]} 23. Nxf8 {[%clk 0:01:01]}  Bxf8 {[%clk 0:01:15]} 24. Rxc8+ {[%clk 0:00:55]}  Bxc8 {[%clk 0:01:15]} 25. Kf1 {[%clk 0:00:28]}  Kd8 {[%clk 0:01:02]} 26. f4 {[%clk 0:00:27]}  Kc7 {[%clk 0:01:01]} 27. g3 {[%clk 0:00:25]}  Bd7 {[%clk 0:01:01]} 28. Nc2 {[%clk 0:00:20]}  Nf3 {[%clk 0:00:50]} 29. Kg2 {[%clk 0:00:18]}  Nd2 {[%clk 0:00:49]} 30. Rd1 {[%clk 0:00:14]}  Nb3 {[%clk 0:00:48]} 31. Rb1 {[%clk 0:00:03]}  Bxa4 {[%clk 0:00:47]} 32. Na1 {[%clk 0:00:01]}  Nc5 {[%clk 0:00:45]} 0-1


[Site "https://www.chess.com"]

[Event "Titled Tuesday Blitz March 14 Late 2023"]
[White "Tarnowska, Aleksandra"]
[Black "Bach, Matthias"]
[WhiteFideId "1180967"]
[BlackFideId "4603168"]
[WhiteElo "1776"]
[BlackElo "2165"]
[Result "0-1"]
[Round "04"]
[TimeControl "180+1"]
[Date "2023.03.14"]
[WhiteClock "0:00:03"]
[BlackClock "0:01:32"]

1. e4 {[%clk 0:03:00]}  e5 {[%clk 0:02:58]} 2. Nf3 {[%clk 0:03:00]}  Nc6 {[%clk 0:02:58]} 3. Bb5 {[%clk 0:03:01]}  Bc5 {[%clk 0:02:58]} 4. O-O {[%clk 0:03:01]}  d6 {[%clk 0:02:58]} 5. Re1 {[%clk 0:02:58]}  a6 {[%clk 0:02:55]} 6. Ba4 {[%clk 0:02:58]}  Ne7 {[%clk 0:02:54]} 7. c3 {[%clk 0:02:55]}  Ba7 {[%clk 0:02:52]} 8. d4 {[%clk 0:02:53]}  exd4 {[%clk 0:02:52]} 9. cxd4 {[%clk 0:02:54]}  O-O {[%clk 0:02:52]} 10. h3 {[%clk 0:02:52]}  d5 {[%clk 0:02:48]} 11. e5 {[%clk 0:02:52]}  Bf5 {[%clk 0:02:47]} 12. Be3 {[%clk 0:02:24]}  Be4 {[%clk 0:02:41]} 13. Nbd2 {[%clk 0:02:11]}  Nf5 {[%clk 0:02:36]} 14. Nxe4 {[%clk 0:02:08]}  dxe4 {[%clk 0:02:36]} 15. Bxc6 {[%clk 0:01:35]}  bxc6 {[%clk 0:02:37]} 16. Nh2 {[%clk 0:01:22]}  Nxd4 {[%clk 0:02:25]} 17. Rc1 {[%clk 0:01:15]}  c5 {[%clk 0:02:22]} 18. Qh5 {[%clk 0:01:05]}  Rb8 {[%clk 0:02:15]} 19. b3 {[%clk 0:01:05]}  Rb6 {[%clk 0:02:14]} 20. Ng4 {[%clk 0:01:00]}  Rg6 {[%clk 0:02:10]} 21. Rcd1 {[%clk 0:00:40]}  Qe7 {[%clk 0:01:58]} 22. Bxd4 {[%clk 0:00:36]}  cxd4 {[%clk 0:01:57]} 23. Rxe4 {[%clk 0:00:36]}  f5 {[%clk 0:01:51]} 24. Rf4 {[%clk 0:00:04]}  fxg4 {[%clk 0:01:48]} 25. Rxf8+ {[%clk 0:00:04]}  Qxf8 {[%clk 0:01:49]} 26. hxg4 {[%clk 0:00:03]}  Qf4 {[%clk 0:01:43]} 27. Qh4 {[%clk 0:00:03]}  h6 {[%clk 0:01:37]} 28. Rf1 {[%clk 0:00:02]}  Qxg4 {[%clk 0:01:33]} 29. Qd8+ {[%clk 0:00:03]}  Kh7 {[%clk 0:01:33]} 30. g3 {[%clk 0:00:03]}  d3 {[%clk 0:01:32]} 0-1


[Site "https://www.chess.com"]

[Event "Titled Tuesday Blitz March 14 Late 2023"]
[White "Tica, Sven"]
[Black "Foerster-Yialamas, Lucas"]
[WhiteFideId "14526948"]
[BlackFideId "30901774"]
[WhiteElo "2348"]
[BlackElo "2067"]
[Result "0-1"]
[Round "04"]
[TimeControl "180+1"]
[Date "2023.03.14"]
[WhiteClock "0:01:31"]
[BlackClock "0:00:05"]

1. e4 {[%clk 0:03:00]}  c5 {[%clk 0:02:52]} 2. Nc3 {[%clk 0:02:59]}  Nc6 {[%clk 0:02:51]} 3. f4 {[%clk 0:02:59]}  e6 {[%clk 0:02:51]} 4. Nf3 {[%clk 0:02:59]}  d5 {[%clk 0:02:51]} 5. Bb5 {[%clk 0:02:56]}  Ne7 {[%clk 0:02:34]} 6. d3 {[%clk 0:02:42]}  a6 {[%clk 0:02:29]} 7. Bxc6+ {[%clk 0:02:42]}  Nxc6 {[%clk 0:02:30]} 8. O-O {[%clk 0:02:40]}  b5 {[%clk 0:02:29]} 9. Qe1 {[%clk 0:02:40]}  Be7 {[%clk 0:02:26]} 10. Qg3 {[%clk 0:02:33]}  O-O {[%clk 0:02:24]} 11. f5 {[%clk 0:02:33]}  d4 {[%clk 0:02:17]} 12. Bh6 {[%clk 0:02:29]}  Bf6 {[%clk 0:01:54]} 13. e5 {[%clk 0:02:23]}  Nxe5 {[%clk 0:01:53]} 14. Ne4 {[%clk 0:02:18]}  Nxf3+ {[%clk 0:01:44]} 15. Rxf3 {[%clk 0:02:16]}  exf5 {[%clk 0:01:42]} 16. Raf1 {[%clk 0:02:12]}  Re8 {[%clk 0:01:37]} 17. Nd6 {[%clk 0:01:52]}  Be5 {[%clk 0:01:31]} 18. Re1 {[%clk 0:01:51]}  Qxd6 {[%clk 0:01:18]} 19. Qxg7+ {[%clk 0:01:48]}  Bxg7 {[%clk 0:01:18]} 20. Rxe8+ {[%clk 0:01:47]}  Qf8 {[%clk 0:01:18]} 21. Rxf8+ {[%clk 0:01:48]}  Kxf8 {[%clk 0:01:19]} 22. Bf4 {[%clk 0:01:47]}  c4 {[%clk 0:01:17]} 23. Bd6+ {[%clk 0:01:45]}  Kg8 {[%clk 0:01:17]} 24. Rg3 {[%clk 0:01:45]}  f6 {[%clk 0:01:12]} 25. Bc5 {[%clk 0:01:44]}  cxd3 {[%clk 0:01:09]} 26. cxd3 {[%clk 0:01:44]}  Be6 {[%clk 0:01:09]} 27. Bxd4 {[%clk 0:01:43]}  Kf7 {[%clk 0:01:09]} 28. a3 {[%clk 0:01:43]}  Bd5 {[%clk 0:01:04]} 29. Rh3 {[%clk 0:01:38]}  h6 {[%clk 0:01:02]} 30. g3 {[%clk 0:01:37]}  Rc8 {[%clk 0:01:01]} 31. Rh4 {[%clk 0:01:38]}  Rc2 {[%clk 0:00:56]} 32. Bc3 {[%clk 0:01:38]}  Rg2+ {[%clk 0:00:51]} 33. Kf1 {[%clk 0:01:38]}  Rc2 {[%clk 0:00:46]} 34. Rd4 {[%clk 0:01:36]}  Bg2+ {[%clk 0:00:43]} 35. Ke1 {[%clk 0:01:36]}  Bf3 {[%clk 0:00:43]} 36. Rd7+ {[%clk 0:01:35]}  Kg6 {[%clk 0:00:43]} 37. h4 {[%clk 0:01:36]}  h5 {[%clk 0:00:40]} 38. Rd6 {[%clk 0:01:34]}  f4 {[%clk 0:00:28]} 39. gxf4 {[%clk 0:01:33]}  Kf5 {[%clk 0:00:28]} 40. Rxa6 {[%clk 0:01:27]}  Kxf4 {[%clk 0:00:19]} 41. Ra7 {[%clk 0:01:27]}  Bh6 {[%clk 0:00:16]} 42. Bd2+ {[%clk 0:01:28]}  Rxd2 {[%clk 0:00:11]} 43. Kxd2 {[%clk 0:01:29]}  Kg4+ {[%clk 0:00:11]} 44. Kc3 {[%clk 0:01:29]}  Kxh4 {[%clk 0:00:11]} 45. Ra5 {[%clk 0:01:29]}  Bg5 {[%clk 0:00:09]} 46. Rxb5 {[%clk 0:01:29]}  Kg3 {[%clk 0:00:10]} 47. a4 {[%clk 0:01:26]}  h4 {[%clk 0:00:10]} 48. Rb8 {[%clk 0:01:27]}  h3 {[%clk 0:00:10]} 49. Rh8 {[%clk 0:01:28]}  h2 {[%clk 0:00:10]} 50. a5 {[%clk 0:01:28]}  h1=Q {[%clk 0:00:11]} 51. Rxh1 {[%clk 0:01:28]}  Bxh1 {[%clk 0:00:12]} 52. b4 {[%clk 0:01:28]}  Be3 {[%clk 0:00:12]} 53. b5 {[%clk 0:01:28]}  f5 {[%clk 0:00:11]} 54. d4 {[%clk 0:01:29]}  f4 {[%clk 0:00:09]} 55. b6 {[%clk 0:01:29]}  Bb7 {[%clk 0:00:08]} 56. Kc4 {[%clk 0:01:28]}  f3 {[%clk 0:00:08]} 57. Kb5 {[%clk 0:01:28]}  f2 {[%clk 0:00:09]} 58. a6 {[%clk 0:01:29]}  Bxa6+ {[%clk 0:00:09]} 59. Kxa6 {[%clk 0:01:29]}  f1=Q+ {[%clk 0:00:10]} 60. Ka7 {[%clk 0:01:29]}  Qf7+ {[%clk 0:00:09]} 61. b7 {[%clk 0:01:29]}  Bxd4+ {[%clk 0:00:07]} 62. Ka8 {[%clk 0:01:30]}  Qa2+ {[%clk 0:00:07]} 63. Kb8 {[%clk 0:01:30]}  Be5+ {[%clk 0:00:06]} 64. Kc8 {[%clk 0:01:30]}  Qe6+ {[%clk 0:00:07]} 65. Kd8 {[%clk 0:01:31]}  Qd6+ {[%clk 0:00:07]} 66. Ke8 {[%clk 0:01:31]}  Bf6 {[%clk 0:00:06]} 67. Kf7 {[%clk 0:01:31]}  Qe7+ {[%clk 0:00:07]} 68. Kg6 {[%clk 0:01:32]}  Qd8 {[%clk 0:00:07]} 69. Kf5 {[%clk 0:01:31]}  Kf3 {[%clk 0:00:06]} 70. Kg6 {[%clk 0:01:31]}  Kg4 {[%clk 0:00:05]} 71. Kh7 {[%clk 0:01:31]}  Qe7+ {[%clk 0:00:05]} 72. Kg6 {[%clk 0:01:31]}  Qg7# {[%clk 0:00:05]} 0-1


[Site "https://www.chess.com"]

[Event "Titled Tuesday Blitz March 14 Late 2023"]
[White "Urazayev, Arystanbek"]
[Black "Garrido Dominguez, Jesus"]
[WhiteFideId "13709810"]
[BlackFideId "2254174"]
[WhiteElo "2479"]
[BlackElo "2385"]
[Result "1-0"]
[Round "04"]
[TimeControl "180+1"]
[Date "2023.03.14"]
[WhiteClock "0:00:23"]
[BlackClock "0:00:01"]

1. e4 {[%clk 0:03:00]}  d6 {[%clk 0:02:59]} 2. d4 {[%clk 0:03:00]}  Nf6 {[%clk 0:03:00]} 3. Nc3 {[%clk 0:03:01]}  e5 {[%clk 0:03:00]} 4. Nf3 {[%clk 0:03:02]}  Nbd7 {[%clk 0:03:00]} 5. Bc4 {[%clk 0:03:02]}  Be7 {[%clk 0:03:00]} 6. O-O {[%clk 0:03:02]}  O-O {[%clk 0:03:01]} 7. Re1 {[%clk 0:03:03]}  c6 {[%clk 0:03:02]} 8. a4 {[%clk 0:03:03]}  b6 {[%clk 0:03:02]} 9. h3 {[%clk 0:03:03]}  a6 {[%clk 0:03:02]} 10. Ba2 {[%clk 0:03:03]}  Rb8 {[%clk 0:03:01]} 11. dxe5 {[%clk 0:03:01]}  dxe5 {[%clk 0:03:01]} 12. Rb1 {[%clk 0:02:55]}  b5 {[%clk 0:03:01]} 13. axb5 {[%clk 0:02:56]}  axb5 {[%clk 0:03:01]} 14. b4 {[%clk 0:02:57]}  Qc7 {[%clk 0:03:02]} 15. Nh4 {[%clk 0:02:55]}  Nb6 {[%clk 0:02:54]} 16. Qf3 {[%clk 0:02:55]}  Be6 {[%clk 0:02:49]} 17. Nf5 {[%clk 0:02:53]}  Bxf5 {[%clk 0:02:33]} 18. Qxf5 {[%clk 0:02:54]}  Nc4 {[%clk 0:02:33]} 19. Bg5 {[%clk 0:02:49]}  g6 {[%clk 0:02:20]} 20. Qf3 {[%clk 0:02:48]}  Nh5 {[%clk 0:02:20]} 21. Bh6 {[%clk 0:02:46]}  Rfd8 {[%clk 0:02:10]} 22. Qe2 {[%clk 0:02:35]}  Rd4 {[%clk 0:01:45]} 23. Red1 {[%clk 0:02:27]}  Rbd8 {[%clk 0:01:44]} 24. Rd3 {[%clk 0:02:27]}  Nf4 {[%clk 0:01:35]} 25. Bxf4 {[%clk 0:02:22]}  exf4 {[%clk 0:01:34]} 26. Rbd1 {[%clk 0:02:19]}  Rxd3 {[%clk 0:01:31]} 27. cxd3 {[%clk 0:02:17]}  Ne5 {[%clk 0:01:30]} 28. d4 {[%clk 0:02:09]}  Bxb4 {[%clk 0:01:21]} 29. Qb2 {[%clk 0:01:58]}  Bxc3 {[%clk 0:01:05]} 30. Qxc3 {[%clk 0:01:58]}  f3 {[%clk 0:00:51]} 31. gxf3 {[%clk 0:01:56]}  Qa7 {[%clk 0:00:49]} 32. Bd5 {[%clk 0:01:06]}  cxd5 {[%clk 0:00:42]} 33. dxe5 {[%clk 0:01:06]}  d4 {[%clk 0:00:43]} 34. Qb3 {[%clk 0:01:05]}  Qc5 {[%clk 0:00:40]} 35. e6 {[%clk 0:01:04]}  fxe6 {[%clk 0:00:23]} 36. Qxe6+ {[%clk 0:01:04]}  Kg7 {[%clk 0:00:24]} 37. e5 {[%clk 0:01:04]}  Rf8 {[%clk 0:00:22]} 38. Qd7+ {[%clk 0:00:59]}  Rf7 {[%clk 0:00:22]} 39. Qxd4 {[%clk 0:01:00]}  Qxd4 {[%clk 0:00:22]} 40. Rxd4 {[%clk 0:01:01]}  Rxf3 {[%clk 0:00:22]} 41. Rd7+ {[%clk 0:01:01]}  Kh6 {[%clk 0:00:21]} 42. Rb7 {[%clk 0:01:01]}  Rxh3 {[%clk 0:00:21]} 43. e6 {[%clk 0:00:56]}  Rh5 {[%clk 0:00:20]} 44. f4 {[%clk 0:00:56]}  Rc5 {[%clk 0:00:17]} 45. Kf2 {[%clk 0:00:49]}  Rc6 {[%clk 0:00:17]} 46. e7 {[%clk 0:00:43]}  Re6 {[%clk 0:00:17]} 47. f5 {[%clk 0:00:44]}  gxf5 {[%clk 0:00:11]} 48. Rb6 {[%clk 0:00:44]}  Rxb6 {[%clk 0:00:11]} 49. e8=Q {[%clk 0:00:44]}  Rg6 {[%clk 0:00:12]} 50. Qxb5 {[%clk 0:00:41]}  Rf6 {[%clk 0:00:10]} 51. Qe8 {[%clk 0:00:40]}  Rg6 {[%clk 0:00:10]} 52. Qf7 {[%clk 0:00:37]}  Rg7 {[%clk 0:00:09]} 53. Qf6+ {[%clk 0:00:36]}  Rg6 {[%clk 0:00:10]} 54. Qxf5 {[%clk 0:00:34]}  Kg7 {[%clk 0:00:10]} 55. Qd7+ {[%clk 0:00:33]}  Kg8 {[%clk 0:00:10]} 56. Kf3 {[%clk 0:00:32]}  Kh8 {[%clk 0:00:09]} 57. Qf7 {[%clk 0:00:30]}  Rg7 {[%clk 0:00:09]} 58. Qf6 {[%clk 0:00:30]}  Kg8 {[%clk 0:00:09]} 59. Ke4 {[%clk 0:00:28]}  Rg6 {[%clk 0:00:07]} 60. Qe7 {[%clk 0:00:27]}  Rg4+ {[%clk 0:00:07]} 61. Kf5 {[%clk 0:00:27]}  Rg6 {[%clk 0:00:08]} 62. Qd8+ {[%clk 0:00:25]}  Kg7 {[%clk 0:00:08]} 63. Qe8 {[%clk 0:00:26]}  Rf6+ {[%clk 0:00:07]} 64. Ke5 {[%clk 0:00:25]}  Rg6 {[%clk 0:00:07]} 65. Qe7+ {[%clk 0:00:25]}  Kg8 {[%clk 0:00:07]} 66. Kf5 {[%clk 0:00:25]}  Rg2 {[%clk 0:00:02]} 67. Qd8+ {[%clk 0:00:24]}  Kg7 {[%clk 0:00:03]} 68. Qd4+ {[%clk 0:00:24]}  Kh6 {[%clk 0:00:01]} 69. Kf6 {[%clk 0:00:23]} 1-0


[Site "https://www.chess.com"]

[Event "Titled Tuesday Blitz March 14 Late 2023"]
[White "Wu, Sibo"]
[Black "Pakleza, Zbigniew"]
[WhiteFideId "8606048"]
[BlackFideId "1119290"]
[WhiteElo "2423"]
[BlackElo "2410"]
[Result "0-1"]
[Round "04"]
[TimeControl "180+1"]
[Date "2023.03.14"]
[WhiteClock "0:00:38"]
[BlackClock "0:00:16"]

1. d4 {[%clk 0:03:00]}  d6 {[%clk 0:02:54]} 2. Bf4 {[%clk 0:03:00]}  Nc6 {[%clk 0:02:52]} 3. Nc3 {[%clk 0:02:59]}  e5 {[%clk 0:02:38]} 4. dxe5 {[%clk 0:02:58]}  dxe5 {[%clk 0:02:39]} 5. Qxd8+ {[%clk 0:02:58]}  Kxd8 {[%clk 0:02:40]} 6. O-O-O+ {[%clk 0:02:56]}  Bd7 {[%clk 0:02:39]} 7. Bg3 {[%clk 0:02:53]}  Kc8 {[%clk 0:02:34]} 8. Nf3 {[%clk 0:02:42]}  f6 {[%clk 0:02:33]} 9. e4 {[%clk 0:02:42]}  Be6 {[%clk 0:02:32]} 10. Bb5 {[%clk 0:02:18]}  Nge7 {[%clk 0:02:18]} 11. Nd5 {[%clk 0:02:18]}  a6 {[%clk 0:02:16]} 12. Bc4 {[%clk 0:02:16]}  Bg4 {[%clk 0:01:43]} 13. a3 {[%clk 0:01:49]}  b5 {[%clk 0:01:40]} 14. Ba2 {[%clk 0:01:49]}  Kb7 {[%clk 0:01:38]} 15. h3 {[%clk 0:01:49]}  Bh5 {[%clk 0:01:37]} 16. Rd3 {[%clk 0:01:46]}  Nc8 {[%clk 0:01:13]} 17. Nd2 {[%clk 0:01:42]}  Bc5 {[%clk 0:01:07]} 18. f4 {[%clk 0:01:33]}  Re8 {[%clk 0:01:01]} 19. c3 {[%clk 0:01:29]}  Nd6 {[%clk 0:00:57]} 20. Re1 {[%clk 0:01:21]}  Rad8 {[%clk 0:00:55]} 21. f5 {[%clk 0:01:17]}  Ba7 {[%clk 0:00:49]} 22. Kc2 {[%clk 0:01:16]}  Kb8 {[%clk 0:00:42]} 23. Rf1 {[%clk 0:01:08]}  Be2 {[%clk 0:00:41]} 24. Re1 {[%clk 0:01:05]}  Bxd3+ {[%clk 0:00:41]} 25. Kxd3 {[%clk 0:01:06]}  Ne7 {[%clk 0:00:35]} 26. Kc2 {[%clk 0:01:04]}  Ndxf5 {[%clk 0:00:32]} 27. Nxf6 {[%clk 0:00:59]}  Ne3+ {[%clk 0:00:28]} 28. Rxe3 {[%clk 0:00:58]}  Bxe3 {[%clk 0:00:29]} 29. Nxe8 {[%clk 0:00:58]}  Rxd2+ {[%clk 0:00:28]} 30. Kb3 {[%clk 0:00:56]}  Nc6 {[%clk 0:00:22]} 31. a4 {[%clk 0:00:50]}  Rxg2 {[%clk 0:00:19]} 32. Be1 {[%clk 0:00:48]}  Kc8 {[%clk 0:00:16]} 33. axb5 {[%clk 0:00:47]}  axb5 {[%clk 0:00:17]} 34. c4 {[%clk 0:00:44]}  Nd4+ {[%clk 0:00:15]} 35. Kc3 {[%clk 0:00:41]}  b4+ {[%clk 0:00:16]} 36. Kxb4 {[%clk 0:00:41]}  Nc2+ {[%clk 0:00:15]} 37. Kb5 {[%clk 0:00:38]}  Nxe1 {[%clk 0:00:16]} 0-1


[Site "https://www.chess.com"]

[Event "Titled Tuesday Blitz March 14 Late 2023"]
[White "Xu, Yi"]
[Black "Koellner, Ruben Gideon"]
[WhiteFideId "8605564"]
[BlackFideId "12993093"]
[WhiteElo "2471"]
[BlackElo "2303"]
[Result "0-1"]
[Round "04"]
[TimeControl "180+1"]
[Date "2023.03.14"]
[WhiteClock "0:00:10"]
[BlackClock "0:01:02"]

1. e4 {[%clk 0:03:00]}  d6 {[%clk 0:03:00]} 2. d4 {[%clk 0:03:00]}  Nf6 {[%clk 0:03:00]} 3. Nc3 {[%clk 0:03:01]}  e5 {[%clk 0:03:01]} 4. Nf3 {[%clk 0:03:01]}  Nbd7 {[%clk 0:03:01]} 5. Bc4 {[%clk 0:03:01]}  Be7 {[%clk 0:03:01]} 6. O-O {[%clk 0:03:01]}  c6 {[%clk 0:03:02]} 7. a4 {[%clk 0:03:01]}  h6 {[%clk 0:03:02]} 8. Re1 {[%clk 0:03:01]}  Qc7 {[%clk 0:03:03]} 9. h3 {[%clk 0:03:00]}  Nf8 {[%clk 0:03:03]} 10. b3 {[%clk 0:02:59]}  Ng6 {[%clk 0:03:02]} 11. Bf1 {[%clk 0:02:41]}  O-O {[%clk 0:03:01]} 12. g3 {[%clk 0:02:37]}  b6 {[%clk 0:03:00]} 13. Bg2 {[%clk 0:02:36]}  a6 {[%clk 0:03:00]} 14. Bb2 {[%clk 0:02:35]}  Bb7 {[%clk 0:02:58]} 15. Qd3 {[%clk 0:02:21]}  b5 {[%clk 0:02:57]} 16. Rad1 {[%clk 0:02:11]}  Rfd8 {[%clk 0:02:54]} 17. Ba3 {[%clk 0:01:41]}  Bf8 {[%clk 0:02:49]} 18. Qe3 {[%clk 0:01:38]}  exd4 {[%clk 0:02:41]} 19. Nxd4 {[%clk 0:01:30]}  c5 {[%clk 0:02:40]} 20. Nf5 {[%clk 0:01:25]}  b4 {[%clk 0:02:37]} 21. Bb2 {[%clk 0:01:25]}  bxc3 {[%clk 0:02:36]} 22. Bxc3 {[%clk 0:01:25]}  Nd7 {[%clk 0:02:28]} 23. f4 {[%clk 0:01:21]}  Re8 {[%clk 0:02:27]} 24. Qf3 {[%clk 0:01:09]}  c4 {[%clk 0:02:26]} 25. Kh2 {[%clk 0:01:04]}  Nc5 {[%clk 0:02:23]} 26. Rd4 {[%clk 0:00:54]}  cxb3 {[%clk 0:02:13]} 27. cxb3 {[%clk 0:00:55]}  Bxe4 {[%clk 0:02:06]} 28. Rdxe4 {[%clk 0:00:48]}  Nxe4 {[%clk 0:01:58]} 29. Rxe4 {[%clk 0:00:49]}  Rxe4 {[%clk 0:01:57]} 30. Qxe4 {[%clk 0:00:49]}  Rb8 {[%clk 0:01:42]} 31. Qd4 {[%clk 0:00:21]}  Rxb3 {[%clk 0:01:32]} 32. Ba1 {[%clk 0:00:21]}  Qc5 {[%clk 0:01:27]} 33. Nxh6+ {[%clk 0:00:20]}  Kh7 {[%clk 0:01:24]} 34. Nxf7 {[%clk 0:00:20]}  Qxd4 {[%clk 0:01:22]} 35. Bxd4 {[%clk 0:00:20]}  Be7 {[%clk 0:01:12]} 36. h4 {[%clk 0:00:16]}  Rb4 {[%clk 0:01:10]} 37. Bc3 {[%clk 0:00:15]}  Rxa4 {[%clk 0:01:09]} 38. h5 {[%clk 0:00:13]}  Nh8 {[%clk 0:01:06]} 39. Bh3 {[%clk 0:00:12]}  Nxf7 {[%clk 0:01:05]} 40. Bf5+ {[%clk 0:00:11]}  Kg8 {[%clk 0:01:04]} 41. Be6 {[%clk 0:00:11]}  Kf8 {[%clk 0:01:03]} 42. g4 {[%clk 0:00:10]}  Bf6 {[%clk 0:01:02]} 0-1


[Site "https://www.chess.com"]

[Event "Titled Tuesday Blitz March 14 Late 2023"]
[White "Yelisieiev, Yevhenii"]
[Black "Szente Varga, Fruzsina"]
[WhiteFideId "14139642"]
[BlackFideId "712264"]
[WhiteElo "2447"]
[BlackElo "1994"]
[Result "1-0"]
[Round "04"]
[TimeControl "180+1"]
[Date "2023.03.14"]
[WhiteClock "0:00:33"]
[BlackClock "0:00:08"]

1. d4 {[%clk 0:03:00]}  Nf6 {[%clk 0:02:59]} 2. Nf3 {[%clk 0:03:00]}  g6 {[%clk 0:02:58]} 3. g3 {[%clk 0:03:00]}  Bg7 {[%clk 0:02:58]} 4. Bg2 {[%clk 0:03:01]}  d5 {[%clk 0:02:59]} 5. O-O {[%clk 0:03:01]}  O-O {[%clk 0:02:59]} 6. c3 {[%clk 0:03:02]}  c6 {[%clk 0:03:00]} 7. a4 {[%clk 0:03:02]}  Nbd7 {[%clk 0:03:00]} 8. a5 {[%clk 0:03:02]}  Re8 {[%clk 0:02:59]} 9. Qb3 {[%clk 0:03:02]}  e5 {[%clk 0:02:58]} 10. dxe5 {[%clk 0:03:02]}  Nxe5 {[%clk 0:02:58]} 11. Rd1 {[%clk 0:02:52]}  Ne4 {[%clk 0:02:57]} 12. Nxe5 {[%clk 0:02:51]}  Rxe5 {[%clk 0:02:55]} 13. Be3 {[%clk 0:02:47]}  h5 {[%clk 0:02:47]} 14. c4 {[%clk 0:02:14]}  h4 {[%clk 0:01:50]} 15. cxd5 {[%clk 0:02:14]}  Rxd5 {[%clk 0:01:51]} 16. Rxd5 {[%clk 0:02:08]}  cxd5 {[%clk 0:01:51]} 17. Nc3 {[%clk 0:01:58]}  d4 {[%clk 0:01:15]} 18. Nxe4 {[%clk 0:01:57]}  dxe3 {[%clk 0:01:15]} 19. Qxe3 {[%clk 0:01:57]}  hxg3 {[%clk 0:01:15]} 20. hxg3 {[%clk 0:01:56]}  Bxb2 {[%clk 0:01:15]} 21. Rb1 {[%clk 0:01:52]}  Bg7 {[%clk 0:01:14]} 22. a6 {[%clk 0:01:51]}  b6 {[%clk 0:00:51]} 23. Nf6+ {[%clk 0:01:11]}  Bxf6 {[%clk 0:00:51]} 24. Bxa8 {[%clk 0:01:12]}  Bxa6 {[%clk 0:00:50]} 25. Bf3 {[%clk 0:01:12]}  Qd7 {[%clk 0:00:32]} 26. Kg2 {[%clk 0:01:11]}  Bc4 {[%clk 0:00:32]} 27. Qf4 {[%clk 0:01:07]}  Qe6 {[%clk 0:00:29]} 28. Qb8+ {[%clk 0:01:06]}  Kg7 {[%clk 0:00:29]} 29. Qxa7 {[%clk 0:01:06]}  b5 {[%clk 0:00:30]} 30. Qe3 {[%clk 0:01:04]}  Qd6 {[%clk 0:00:28]} 31. Rh1 {[%clk 0:01:03]}  g5 {[%clk 0:00:27]} 32. Qe4 {[%clk 0:01:02]}  Qe6 {[%clk 0:00:17]} 33. Qh7+ {[%clk 0:00:58]}  Kf8 {[%clk 0:00:17]} 34. Rd1 {[%clk 0:00:58]}  Ke7 {[%clk 0:00:16]} 35. Qg8 {[%clk 0:00:55]}  Qb6 {[%clk 0:00:14]} 36. Qc8 {[%clk 0:00:51]}  Be6 {[%clk 0:00:12]} 37. Qa8 {[%clk 0:00:46]}  b4 {[%clk 0:00:11]} 38. Bc6 {[%clk 0:00:42]}  Bd4 {[%clk 0:00:10]} 39. Qe8+ {[%clk 0:00:40]}  Kf6 {[%clk 0:00:09]} 40. Qh8+ {[%clk 0:00:40]}  Ke7 {[%clk 0:00:08]} 41. Qe8+ {[%clk 0:00:40]}  Kf6 {[%clk 0:00:08]} 42. Rxd4 {[%clk 0:00:39]}  b3 {[%clk 0:00:07]} 43. Be4 {[%clk 0:00:33]}  b2 {[%clk 0:00:07]} 44. Qd8+ {[%clk 0:00:33]}  Qxd8 {[%clk 0:00:05]} 45. Rxd8 {[%clk 0:00:34]}  Ke5 {[%clk 0:00:05]} 46. Bb1 {[%clk 0:00:34]}  Bd5+ {[%clk 0:00:05]} 47. Rxd5+ {[%clk 0:00:34]}  Kxd5 {[%clk 0:00:05]} 48. Kf3 {[%clk 0:00:34]}  Kd4 {[%clk 0:00:06]} 49. Kg4 {[%clk 0:00:34]}  f6 {[%clk 0:00:06]} 50. Kf5 {[%clk 0:00:34]}  Kc3 {[%clk 0:00:06]} 51. Kxf6 {[%clk 0:00:34]}  Kd2 {[%clk 0:00:07]} 52. e3 {[%clk 0:00:33]}  Ke2 {[%clk 0:00:08]} 53. e4 {[%clk 0:00:33]} 1-0


[Site "https://www.chess.com"]

[Event "Titled Tuesday Blitz March 14 Late 2023"]
[White "Roebers, Eline"]
[Black "Albornoz Cabrera, Carlos Daniel"]
[WhiteFideId "1058401"]
[BlackFideId "3518736"]
[WhiteElo "2543"]
[BlackElo "2501"]
[Result "0-1"]
[Round "04"]
[TimeControl "180+2"]
[Date "2023.03.14"]
[WhiteClock "0:00:42"]
[BlackClock "0:00:53"]

1. e4 {[%clk 0:03:00]}  c5 {[%clk 0:02:59]} 2. Nf3 {[%clk 0:03:00]}  Nc6 {[%clk 0:03:00]} 3. d4 {[%clk 0:02:58]}  cxd4 {[%clk 0:03:00]} 4. Nxd4 {[%clk 0:02:59]}  Nf6 {[%clk 0:03:00]} 5. Nc3 {[%clk 0:02:58]}  e5 {[%clk 0:03:00]} 6. Ndb5 {[%clk 0:02:58]}  d6 {[%clk 0:03:01]} 7. Bg5 {[%clk 0:02:57]}  a6 {[%clk 0:03:01]} 8. Na3 {[%clk 0:02:55]}  b5 {[%clk 0:03:02]} 9. Bxf6 {[%clk 0:02:55]}  gxf6 {[%clk 0:03:01]} 10. Nd5 {[%clk 0:02:56]}  f5 {[%clk 0:03:01]} 11. g3 {[%clk 0:02:56]}  fxe4 {[%clk 0:02:52]} 12. Bg2 {[%clk 0:02:54]}  Bg7 {[%clk 0:02:50]} 13. Bxe4 {[%clk 0:02:52]}  O-O {[%clk 0:02:43]} 14. Ne3 {[%clk 0:02:46]}  Bb7 {[%clk 0:02:28]} 15. Qh5 {[%clk 0:02:43]}  h6 {[%clk 0:02:28]} 16. Nf5 {[%clk 0:02:33]}  Qf6 {[%clk 0:02:22]} 17. O-O-O {[%clk 0:02:30]}  Rad8 {[%clk 0:02:18]} 18. h4 {[%clk 0:02:25]}  Na5 {[%clk 0:01:56]} 19. Bxb7 {[%clk 0:02:22]}  Nxb7 {[%clk 0:01:57]} 20. Qf3 {[%clk 0:02:06]}  e4 {[%clk 0:01:54]} 21. Qg4 {[%clk 0:01:47]}  Qxb2+ {[%clk 0:01:49]} 22. Kd2 {[%clk 0:01:47]}  Qf6 {[%clk 0:01:34]} 23. Rhe1 {[%clk 0:01:32]}  Rfe8 {[%clk 0:01:23]} 24. Re3 {[%clk 0:01:11]}  d5 {[%clk 0:01:14]} 25. c3 {[%clk 0:01:09]}  Nd6 {[%clk 0:01:11]} 26. Nxd6 {[%clk 0:01:06]}  Rxd6 {[%clk 0:01:08]} 27. Nc2 {[%clk 0:00:51]}  Qxf2+ {[%clk 0:01:03]} 28. Re2 {[%clk 0:00:50]}  Qf6 {[%clk 0:00:56]} 29. Nd4 {[%clk 0:00:50]}  Qg6 {[%clk 0:00:52]} 30. Qxg6 {[%clk 0:00:42]}  fxg6 {[%clk 0:00:53]} 0-1


[Site "https://www.chess.com"]